{"text_format":"3","workbook":"xlsx","n_sheets":14,"sheets":["saveti","rezime","jan.","feb.","mart","apr.","maj","jun","jul","avg.","sep.","okt.","nov.","dec."],"not_rendered":{"charts":1,"defined_names":27},"read":"whole","date_system":"1900"}

{"sheet":"saveti","index":0,"n_rows":18,"n_cols":1,"rows_kept":18}
["SAVETI U VEZI SA PREDLOŠKOM"]
["Da li postoji jednostavan način za prelazak sa lista Rezime trendova troškova na detalje mesečnih troškova i obrnuto?"]
["Da biste brzo prešli na troškove određenog meseca kliknite na povezanu vezu za navigaciju iznad grafikona, na primer Jan veza za navigaciju u ćeliji B2. Zatim, da biste se vratili na radni list Trendovi troškova kliknite na vezu za navigaciju Rezime u ćeliji D1. "]
["Da biste se vratili na ovaj radni list sa savetima, u radnom listu sa rezimeom izaberite N2. Sa svih radnih listova sa mesecima izaberite stavku E1."]
["Kako da dodam novi tip troškova u rezime troškova ili nove mesečne troškove?"]
["Rezime troškova ispod grafikona i detalji o troškovima za svaki mesec predstavljeni su Excel tabelama. Da biste dodali nove redove u bilo koju Excel tabelu, uradite nešto od sledećeg:"]
[{"$f":"ROW(A1)&\". Ako tabela nema red sa zbirom, počnite da kucate ispod tabele i ona će se automatski razviti kad pritisnete tastere Enter ili Tab.\"","v":"1. Ako tabela nema red sa zbirom, počnite da kucate ispod tabele i ona će se automatski razviti kad pritisnete tastere Enter ili Tab."}]
[{"$f":"ROW(A2)&\". Postavite pokazivač za ćeliju u poslednju ćeliju iznad reda sa zbirom, na primer sa zbirom za poslednje troškove, a zatim pritisnite taster Tab.\"","v":"2. Postavite pokazivač za ćeliju u poslednju ćeliju iznad reda sa zbirom, na primer sa zbirom za poslednje troškove, a zatim pritisnite taster Tab."}]
[{"$f":"ROW(A3)&\". Kliknite desnim tasterom miša na tabelu i u iskačućem meniju postavite pokazivač na stavku „Umetni“, a zatim izaberite stavke „Redovi tabele iznad“ ili „Redovi tabele ispod“.\"","v":"3. Kliknite desnim tasterom miša na tabelu i u iskačućem meniju postavite pokazivač na stavku „Umetni“, a zatim izaberite stavke „Redovi tabele iznad“ ili „Redovi tabele ispod“."}]
[{"$f":"ROW(A4)&\". U donjem desnom uglu tabele postavite miš na regulator veličine tabele i prevucite ga nadole da biste povećali broj dostupnih redova tabele.\"","v":"4. U donjem desnom uglu tabele postavite miš na regulator veličine tabele i prevucite ga nadole da biste povećali broj dostupnih redova tabele."}]
["Unesite trošak na radni list Rezime u tabelu Rezime troškova, u kolonu Troškovi."]
["Dodajte iznos troška za svaki tip troška na radni list meseca na koji se trošak odnosi."]
["na primer: „Trošak 1“ se pojavljuje u mesecima od januara do juna i decembar. "]
[{"$f":"ROW(A1)&\". Troškovi 1 su uneti na radni list sa rezimeom, u okviru „Troškovi“, u tabeli „Rezime_troškova“ (kao naslov za tip troškova)\"","v":"1. Troškovi 1 su uneti na radni list sa rezimeom, u okviru „Troškovi“, u tabeli „Rezime_troškova“ (kao naslov za tip troškova)"}]
[{"$f":"ROW(A2)&\". Za svaki mesec za koji postoje troškovi unesite iznos troškova na odgovarajućem radnom listu za taj mesec.\"","v":"2. Za svaki mesec za koji postoje troškovi unesite iznos troškova na odgovarajućem radnom listu za taj mesec."}]
[{"$f":"ROW(A3)&\". Tip troškova sa radnog lista „Rezime_troškova“ kreira listu kategorija za kolonu „Kategorija“ na radnom listu za svaki mesec.\"","v":"3. Tip troškova sa radnog lista „Rezime_troškova“ kreira listu kategorija za kolonu „Kategorija“ na radnom listu za svaki mesec."}]
[{"$f":"ROW(A4)&\". Koristite listu kategorija u koloni „Kategorija“ da biste izabrali odgovarajući tip troškova za uneti iznos troškova\"","v":"4. Koristite listu kategorija u koloni „Kategorija“ da biste izabrali odgovarajući tip troškova za uneti iznos troškova"}]
[{"$f":"ROW(A5)&\". Da biste dodali nove troškove za bilo koji mesec, dodajte novi red u tabelu „Rezime_troškova“ na radnom listu sa rezimeom, a zatim unesite odgovarajuće detalje o troškovima na radni list za mesec na koji se oni odnose.\"","v":"5. Da biste dodali nove troškove za bilo koji mesec, dodajte novi red u tabelu „Rezime_troškova“ na radnom listu sa rezimeom, a zatim unesite odgovarajuće detalje o troškovima na radni list za mesec na koji se oni odnose."}]

{"sheet":"rezime","index":1,"n_rows":10,"n_cols":15,"rows_kept":10}
["TRENDOVI TROŠKOVA"]
[null,"Jan","Feb","Mart","Apr","Maj","Jun","Jul","Avg","Sep","Okt","Nov","Dec","Saveti"]
[]
["Troškovi","Jan","Feb","Mart","Apr","Maj","Jun","Jul","Avg","Sep","Okt","Nov","Dec","Zbir","Trend"]
["Trošak 1",{"$f":"SUMIFS(ExpJan[Iznos],ExpJan[Kategorija],RezimeTroškova[Troškovi])","v":{"v":33,"d":"33.00"}},{"$f":"SUMIFS(ExpFeb[Iznos],ExpFeb[Kategorija],RezimeTroškova[Troškovi])","v":{"v":375,"d":"375.00"}},{"$f":"SUMIFS(ExpMar[Iznos],ExpMar[Kategorija],RezimeTroškova[Troškovi])","v":{"v":33,"d":"33.00"}},{"$f":"SUMIFS(ExpApr[Iznos],ExpApr[Kategorija],RezimeTroškova[Troškovi])","v":{"v":45,"d":"45.00"}},{"$f":"SUMIFS(ExpMay[Iznos],ExpMay[Kategorija],RezimeTroškova[Troškovi])","v":{"v":375,"d":"375.00"}},{"$f":"SUMIFS(ExpJun[Iznos],ExpJun[Kategorija],RezimeTroškova[Troškovi])","v":{"v":201,"d":"201.00"}},{"$f":"SUMIFS(ExpJul[Iznos],ExpJul[Kategorija],RezimeTroškova[Troškovi])","v":{"v":0,"d":"0.00"}},{"$f":"SUMIFS(ExpAug[Iznos],ExpAug[Kategorija],RezimeTroškova[Troškovi])","v":{"v":0,"d":"0.00"}},{"$f":"SUMIFS(ExpSep[Iznos],ExpSep[Kategorija],RezimeTroškova[Troškovi])","v":{"v":0,"d":"0.00"}},{"$f":"SUMIFS(ExpOct[Iznos],ExpOct[Kategorija],RezimeTroškova[Troškovi])","v":{"v":0,"d":"0.00"}},{"$f":"SUMIFS(ExpNov[Iznos],ExpNov[Kategorija],RezimeTroškova[Troškovi])","v":{"v":0,"d":"0.00"}},{"$f":"SUMIFS(ExpDec[Iznos],ExpDec[Kategorija],RezimeTroškova[Troškovi])","v":{"v":201,"d":"201.00"}},{"$f":"SUM(RezimeTroškova[[#This Row],[Jan]:[Dec]])","v":{"v":1263,"d":"1,263.00"}}]
["Trošak 2",{"$f":"SUMIFS(ExpJan[Iznos],ExpJan[Kategorija],RezimeTroškova[Troškovi])","v":{"v":238,"d":"238.00"}},{"$f":"SUMIFS(ExpFeb[Iznos],ExpFeb[Kategorija],RezimeTroškova[Troškovi])","v":{"v":238,"d":"238.00"}},{"$f":"SUMIFS(ExpMar[Iznos],ExpMar[Kategorija],RezimeTroškova[Troškovi])","v":{"v":238,"d":"238.00"}},{"$f":"SUMIFS(ExpApr[Iznos],ExpApr[Kategorija],RezimeTroškova[Troškovi])","v":{"v":123,"d":"123.00"}},{"$f":"SUMIFS(ExpMay[Iznos],ExpMay[Kategorija],RezimeTroškova[Troškovi])","v":{"v":111,"d":"111.00"}},{"$f":"SUMIFS(ExpJun[Iznos],ExpJun[Kategorija],RezimeTroškova[Troškovi])","v":{"v":98,"d":"98.00"}},{"$f":"SUMIFS(ExpJul[Iznos],ExpJul[Kategorija],RezimeTroškova[Troškovi])","v":{"v":0,"d":"0.00"}},{"$f":"SUMIFS(ExpAug[Iznos],ExpAug[Kategorija],RezimeTroškova[Troškovi])","v":{"v":0,"d":"0.00"}},{"$f":"SUMIFS(ExpSep[Iznos],ExpSep[Kategorija],RezimeTroškova[Troškovi])","v":{"v":0,"d":"0.00"}},{"$f":"SUMIFS(ExpOct[Iznos],ExpOct[Kategorija],RezimeTroškova[Troškovi])","v":{"v":0,"d":"0.00"}},{"$f":"SUMIFS(ExpNov[Iznos],ExpNov[Kategorija],RezimeTroškova[Troškovi])","v":{"v":0,"d":"0.00"}},{"$f":"SUMIFS(ExpDec[Iznos],ExpDec[Kategorija],RezimeTroškova[Troškovi])","v":{"v":440,"d":"440.00"}},{"$f":"SUM(RezimeTroškova[[#This Row],[Jan]:[Dec]])","v":{"v":1486,"d":"1,486.00"}}]
["Trošak 3",{"$f":"SUMIFS(ExpJan[Iznos],ExpJan[Kategorija],RezimeTroškova[Troškovi])","v":{"v":110,"d":"110.00"}},{"$f":"SUMIFS(ExpFeb[Iznos],ExpFeb[Kategorija],RezimeTroškova[Troškovi])","v":{"v":110,"d":"110.00"}},{"$f":"SUMIFS(ExpMar[Iznos],ExpMar[Kategorija],RezimeTroškova[Troškovi])","v":{"v":110,"d":"110.00"}},{"$f":"SUMIFS(ExpApr[Iznos],ExpApr[Kategorija],RezimeTroškova[Troškovi])","v":{"v":125,"d":"125.00"}},{"$f":"SUMIFS(ExpMay[Iznos],ExpMay[Kategorija],RezimeTroškova[Troškovi])","v":{"v":333,"d":"333.00"}},{"$f":"SUMIFS(ExpJun[Iznos],ExpJun[Kategorija],RezimeTroškova[Troškovi])","v":{"v":122,"d":"122.00"}},{"$f":"SUMIFS(ExpJul[Iznos],ExpJul[Kategorija],RezimeTroškova[Troškovi])","v":{"v":0,"d":"0.00"}},{"$f":"SUMIFS(ExpAug[Iznos],ExpAug[Kategorija],RezimeTroškova[Troškovi])","v":{"v":0,"d":"0.00"}},{"$f":"SUMIFS(ExpSep[Iznos],ExpSep[Kategorija],RezimeTroškova[Troškovi])","v":{"v":0,"d":"0.00"}},{"$f":"SUMIFS(ExpOct[Iznos],ExpOct[Kategorija],RezimeTroškova[Troškovi])","v":{"v":0,"d":"0.00"}},{"$f":"SUMIFS(ExpNov[Iznos],ExpNov[Kategorija],RezimeTroškova[Troškovi])","v":{"v":0,"d":"0.00"}},{"$f":"SUMIFS(ExpDec[Iznos],ExpDec[Kategorija],RezimeTroškova[Troškovi])","v":{"v":122,"d":"122.00"}},{"$f":"SUM(RezimeTroškova[[#This Row],[Jan]:[Dec]])","v":{"v":1032,"d":"1,032.00"}}]
["Trošak 4",{"$f":"SUMIFS(ExpJan[Iznos],ExpJan[Kategorija],RezimeTroškova[Troškovi])","v":{"v":426,"d":"426.00"}},{"$f":"SUMIFS(ExpFeb[Iznos],ExpFeb[Kategorija],RezimeTroškova[Troškovi])","v":{"v":84,"d":"84.00"}},{"$f":"SUMIFS(ExpMar[Iznos],ExpMar[Kategorija],RezimeTroškova[Troškovi])","v":{"v":84,"d":"84.00"}},{"$f":"SUMIFS(ExpApr[Iznos],ExpApr[Kategorija],RezimeTroškova[Troškovi])","v":{"v":426,"d":"426.00"}},{"$f":"SUMIFS(ExpMay[Iznos],ExpMay[Kategorija],RezimeTroškova[Troškovi])","v":{"v":125,"d":"125.00"}},{"$f":"SUMIFS(ExpJun[Iznos],ExpJun[Kategorija],RezimeTroškova[Troškovi])","v":{"v":187,"d":"187.00"}},{"$f":"SUMIFS(ExpJul[Iznos],ExpJul[Kategorija],RezimeTroškova[Troškovi])","v":{"v":0,"d":"0.00"}},{"$f":"SUMIFS(ExpAug[Iznos],ExpAug[Kategorija],RezimeTroškova[Troškovi])","v":{"v":0,"d":"0.00"}},{"$f":"SUMIFS(ExpSep[Iznos],ExpSep[Kategorija],RezimeTroškova[Troškovi])","v":{"v":0,"d":"0.00"}},{"$f":"SUMIFS(ExpOct[Iznos],ExpOct[Kategorija],RezimeTroškova[Troškovi])","v":{"v":0,"d":"0.00"}},{"$f":"SUMIFS(ExpNov[Iznos],ExpNov[Kategorija],RezimeTroškova[Troškovi])","v":{"v":0,"d":"0.00"}},{"$f":"SUMIFS(ExpDec[Iznos],ExpDec[Kategorija],RezimeTroškova[Troškovi])","v":{"v":187,"d":"187.00"}},{"$f":"SUM(RezimeTroškova[[#This Row],[Jan]:[Dec]])","v":{"v":1519,"d":"1,519.00"}}]
["Trošak 5",{"$f":"SUMIFS(ExpJan[Iznos],ExpJan[Kategorija],RezimeTroškova[Troškovi])","v":{"v":54,"d":"54.00"}},{"$f":"SUMIFS(ExpFeb[Iznos],ExpFeb[Kategorija],RezimeTroškova[Troškovi])","v":{"v":54,"d":"54.00"}},{"$f":"SUMIFS(ExpMar[Iznos],ExpMar[Kategorija],RezimeTroškova[Troškovi])","v":{"v":109,"d":"109.00"}},{"$f":"SUMIFS(ExpApr[Iznos],ExpApr[Kategorija],RezimeTroškova[Troškovi])","v":{"v":98,"d":"98.00"}},{"$f":"SUMIFS(ExpMay[Iznos],ExpMay[Kategorija],RezimeTroškova[Troškovi])","v":{"v":33,"d":"33.00"}},{"$f":"SUMIFS(ExpJun[Iznos],ExpJun[Kategorija],RezimeTroškova[Troškovi])","v":{"v":441,"d":"441.00"}},{"$f":"SUMIFS(ExpJul[Iznos],ExpJul[Kategorija],RezimeTroškova[Troškovi])","v":{"v":0,"d":"0.00"}},{"$f":"SUMIFS(ExpAug[Iznos],ExpAug[Kategorija],RezimeTroškova[Troškovi])","v":{"v":0,"d":"0.00"}},{"$f":"SUMIFS(ExpSep[Iznos],ExpSep[Kategorija],RezimeTroškova[Troškovi])","v":{"v":0,"d":"0.00"}},{"$f":"SUMIFS(ExpOct[Iznos],ExpOct[Kategorija],RezimeTroškova[Troškovi])","v":{"v":0,"d":"0.00"}},{"$f":"SUMIFS(ExpNov[Iznos],ExpNov[Kategorija],RezimeTroškova[Troškovi])","v":{"v":0,"d":"0.00"}},{"$f":"SUMIFS(ExpDec[Iznos],ExpDec[Kategorija],RezimeTroškova[Troškovi])","v":{"v":99,"d":"99.00"}},{"$f":"SUM(RezimeTroškova[[#This Row],[Jan]:[Dec]])","v":{"v":888,"d":"888.00"}}]
["Zbir",{"$f":"SUBTOTAL(109,RezimeTroškova[Jan])","v":{"v":861,"d":"861.00"}},{"$f":"SUBTOTAL(109,RezimeTroškova[Feb])","v":{"v":861,"d":"861.00"}},{"$f":"SUBTOTAL(109,RezimeTroškova[Mart])","v":{"v":574,"d":"574.00"}},{"$f":"SUBTOTAL(109,RezimeTroškova[Apr])","v":{"v":817,"d":"817.00"}},{"$f":"SUBTOTAL(109,RezimeTroškova[Maj])","v":{"v":977,"d":"977.00"}},{"$f":"SUBTOTAL(109,RezimeTroškova[Jun])","v":{"v":1049,"d":"1,049.00"}},{"$f":"SUBTOTAL(109,RezimeTroškova[Jul])","v":{"v":0,"d":"0.00"}},{"$f":"SUBTOTAL(109,RezimeTroškova[Avg])","v":{"v":0,"d":"0.00"}},{"$f":"SUBTOTAL(109,RezimeTroškova[Sep])","v":{"v":0,"d":"0.00"}},{"$f":"SUBTOTAL(109,RezimeTroškova[Okt])","v":{"v":0,"d":"0.00"}},{"$f":"SUBTOTAL(109,RezimeTroškova[Nov])","v":{"v":0,"d":"0.00"}},{"$f":"SUBTOTAL(109,RezimeTroškova[Dec])","v":{"v":1049,"d":"1,049.00"}},{"$f":"SUBTOTAL(109,RezimeTroškova[Zbir])","v":{"v":6188,"d":"6,188.00"}}]

{"sheet":"jan.","index":2,"n_rows":9,"n_cols":5,"rows_kept":9,"merged":[[0,0,0,2]]}
["TROŠKOVI U JANUARU",null,null,"Rezime","Saveti"]
["Datum","Broj porudžbenice","Iznos","Kategorija","Opis"]
[{"$f":"DATE(YEAR(TODAY()),1,4)","v":"2016-01-04"},"A-12345",{"v":33,"d":"33.00"},"Trošak 1","Pribor"]
[{"$f":"DATE(YEAR(TODAY()),1,5)","v":"2016-01-05"},"A-12346",{"v":238,"d":"238.00"},"Trošak 2"]
[null,null,{"v":342,"d":"342.00"},"Trošak 4"]
[null,null,{"v":110,"d":"110.00"},"Trošak 3"]
[null,null,{"v":84,"d":"84.00"},"Trošak 4"]
[null,null,{"v":54,"d":"54.00"},"Trošak 5"]
["Zbir",null,{"$f":"SUBTOTAL(109,ExpJan[Iznos])","v":{"v":861,"d":"861.00"}}]

{"sheet":"feb.","index":3,"n_rows":9,"n_cols":5,"rows_kept":9,"merged":[[0,0,0,2]]}
["TROŠKOVI U FEBRUARU",null,null,"Rezime","Saveti"]
["Datum","Broj porudžbenice","Iznos","Kategorija","Opis"]
[{"$f":"DATE(YEAR(TODAY()),2,3)","v":"2016-02-03"},"A-12345",{"v":33,"d":"33.00"},"Trošak 1","Pribor"]
[{"$f":"DATE(YEAR(TODAY()),2,4)","v":"2016-02-04"},"A-12346",{"v":238,"d":"238.00"},"Trošak 2"]
[null,null,{"v":342,"d":"342.00"},"Trošak 1"]
[null,null,{"v":110,"d":"110.00"},"Trošak 3"]
[null,null,{"v":84,"d":"84.00"},"Trošak 4"]
[null,null,{"v":54,"d":"54.00"},"Trošak 5"]
["Zbir",null,{"$f":"SUBTOTAL(109,ExpFeb[Iznos])","v":{"v":861,"d":"861.00"}}]

{"sheet":"mart","index":4,"n_rows":9,"n_cols":5,"rows_kept":9,"merged":[[0,0,0,2]]}
["TROŠKOVI U MARTU",null,null,"Rezime","Saveti"]
["Datum","Broj porudžbenice","Iznos","Kategorija","Opis"]
[{"$f":"DATE(YEAR(TODAY()),3,5)","v":"2016-03-05"},"A-12345",{"v":33,"d":"33.00"},"Trošak 1","Pribor"]
[{"$f":"DATE(YEAR(TODAY()),3,6)","v":"2016-03-06"},"A-12346",{"v":238,"d":"238.00"},"Trošak 2"]
[null,null,{"v":55,"d":"55.00"},"Trošak 5"]
[null,null,{"v":110,"d":"110.00"},"Trošak 3"]
[null,null,{"v":84,"d":"84.00"},"Trošak 4"]
[null,null,{"v":54,"d":"54.00"},"Trošak 5"]
["Zbir",null,{"$f":"SUBTOTAL(109,ExpMar[Iznos])","v":{"v":574,"d":"574.00"}}]

{"sheet":"apr.","index":5,"n_rows":9,"n_cols":5,"rows_kept":9,"merged":[[0,0,0,2]]}
["TROŠKOVI U APRILU",null,null,"Rezime","Saveti"]
["Datum","Broj porudžbenice","Iznos","Kategorija","Opis"]
[{"$f":"DATE(YEAR(TODAY()),4,4)","v":"2016-04-04"},"A-12345",{"v":45,"d":"45.00"},"Trošak 1","Pribor"]
[{"$f":"DATE(YEAR(TODAY()),4,8)","v":"2016-04-08"},"A-12346",{"v":123,"d":"123.00"},"Trošak 2"]
[null,null,{"v":342,"d":"342.00"},"Trošak 4"]
[null,null,{"v":125,"d":"125.00"},"Trošak 3"]
[null,null,{"v":84,"d":"84.00"},"Trošak 4"]
[null,null,{"v":98,"d":"98.00"},"Trošak 5"]
["Zbir",null,{"$f":"SUBTOTAL(109,ExpApr[Iznos])","v":{"v":817,"d":"817.00"}}]

{"sheet":"maj","index":6,"n_rows":9,"n_cols":5,"rows_kept":9,"merged":[[0,0,0,2]]}
["TROŠKOVI U MAJU",null,null,"Rezime","Saveti"]
["Datum","Broj porudžbenice","Iznos","Kategorija","Opis"]
[{"$f":"DATE(YEAR(TODAY()),5,3)","v":"2016-05-03"},"A-12345",{"v":33,"d":"33.00"},"Trošak 1","Pribor"]
[{"$f":"DATE(YEAR(TODAY()),5,8)","v":"2016-05-08"},"A-12346",{"v":111,"d":"111.00"},"Trošak 2"]
[null,null,{"v":342,"d":"342.00"},"Trošak 1"]
[null,null,{"v":333,"d":"333.00"},"Trošak 3"]
[null,null,{"v":125,"d":"125.00"},"Trošak 4"]
[null,null,{"v":33,"d":"33.00"},"Trošak 5"]
["Zbir",null,{"$f":"SUBTOTAL(109,ExpMay[Iznos])","v":{"v":977,"d":"977.00"}}]

{"sheet":"jun","index":7,"n_rows":9,"n_cols":5,"rows_kept":9,"merged":[[0,0,0,2]]}
["TROŠKOVI U JUNU",null,null,"Rezime","Saveti"]
["Datum","Broj porudžbenice","Iznos","Kategorija","Opis"]
[{"$f":"DATE(YEAR(TODAY()),6,7)","v":"2016-06-07"},"A-12345",{"v":201,"d":"201.00"},"Trošak 1","Pribor"]
[{"$f":"DATE(YEAR(TODAY()),6,8)","v":"2016-06-08"},"A-12346",{"v":98,"d":"98.00"},"Trošak 2"]
[null,null,{"v":342,"d":"342.00"},"Trošak 5"]
[null,null,{"v":122,"d":"122.00"},"Trošak 3"]
[null,null,{"v":187,"d":"187.00"},"Trošak 4"]
[null,null,{"v":99,"d":"99.00"},"Trošak 5"]
["Zbir",null,{"$f":"SUBTOTAL(109,ExpJun[Iznos])","v":{"v":1049,"d":"1,049.00"}}]

{"sheet":"jul","index":8,"n_rows":9,"n_cols":5,"rows_kept":9,"merged":[[0,0,0,2]]}
["TROŠKOVI U JULU",null,null,"Rezime","Saveti"]
["Datum","Broj porudžbenice","Iznos","Kategorija","Opis"]
[{"$f":"DATE(YEAR(TODAY()),7,9)","v":"2016-07-09"},"A-12345",null,"Trošak 1","Pribor"]
[{"$f":"DATE(YEAR(TODAY()),7,14)","v":"2016-07-14"},"A-12346",null,"Trošak 2"]
[{"$nulls":3},"Trošak 2"]
[{"$nulls":3},"Trošak 3"]
[{"$nulls":3},"Trošak 4"]
[{"$nulls":3},"Trošak 5"]
["Zbir",null,{"$f":"SUBTOTAL(109,ExpJul[Iznos])","v":{"v":0,"d":"0.00"}}]

{"sheet":"avg.","index":9,"n_rows":9,"n_cols":5,"rows_kept":9,"merged":[[0,0,0,2]]}
["TROŠKOVI U AVGUSTU",null,null,"Rezime","Saveti"]
["Datum","Broj porudžbenice","Iznos","Kategorija","Opis"]
[{"$f":"DATE(YEAR(TODAY()),8,8)","v":"2016-08-08"},"A-12345",null,"Trošak 1","Pribor"]
[{"$f":"DATE(YEAR(TODAY()),8,9)","v":"2016-08-09"},"A-12346",null,"Trošak 2"]
[{"$nulls":3},"Trošak 2"]
[{"$nulls":3},"Trošak 3"]
[{"$nulls":3},"Trošak 4"]
[{"$nulls":3},"Trošak 5"]
["Zbir",null,{"$f":"SUBTOTAL(109,ExpAug[Iznos])","v":{"v":0,"d":"0.00"}}]

{"sheet":"sep.","index":10,"n_rows":9,"n_cols":5,"rows_kept":9,"merged":[[0,0,0,2]]}
["TROŠKOVI U SEPTEMBRU",null,null,"Rezime","Saveti"]
["Datum","Broj porudžbenice","Iznos","Kategorija","Opis"]
[{"$f":"DATE(YEAR(TODAY()),9,9)","v":"2016-09-09"},"A-12345",null,"Trošak 1","Pribor"]
[{"$f":"DATE(YEAR(TODAY()),9,15)","v":"2016-09-15"},"A-12346",null,"Trošak 2"]
[{"$nulls":3},"Trošak 2"]
[{"$nulls":3},"Trošak 3"]
[{"$nulls":3},"Trošak 4"]
[{"$nulls":3},"Trošak 5"]
["Zbir",null,{"$f":"SUBTOTAL(109,ExpSep[Iznos])","v":{"v":0,"d":"0.00"}}]

{"sheet":"okt.","index":11,"n_rows":9,"n_cols":5,"rows_kept":9,"merged":[[0,0,0,2]]}
["TROŠKOVI U OKTOBRU",null,null,"Rezime","Saveti"]
["Datum","Broj porudžbenice","Iznos","Kategorija","Opis"]
[{"$f":"DATE(YEAR(TODAY()),10,10)","v":"2016-10-10"},"A-12345",null,"Trošak 1","Pribor"]
[{"$f":"DATE(YEAR(TODAY()),10,21)","v":"2016-10-21"},"A-12346",null,"Trošak 2"]
[{"$nulls":3},"Trošak 2"]
[{"$nulls":3},"Trošak 3"]
[{"$nulls":3},"Trošak 4"]
[{"$nulls":3},"Trošak 5"]
["Zbir",null,{"$f":"SUBTOTAL(109,ExpOct[Iznos])","v":{"v":0,"d":"0.00"}}]

{"sheet":"nov.","index":12,"n_rows":9,"n_cols":5,"rows_kept":9,"merged":[[0,0,0,2]]}
["TROŠKOVI U NOVEMBRU",null,null,"Rezime","Saveti"]
["Datum","Broj porudžbenice","Iznos","Kategorija","Opis"]
[{"$f":"DATE(YEAR(TODAY()),11,14)","v":"2016-11-14"},"A-12345",null,"Trošak 1","Pribor"]
[{"$f":"DATE(YEAR(TODAY()),11,21)","v":"2016-11-21"},"A-12346",null,"Trošak 2"]
[{"$nulls":3},"Trošak 2"]
[{"$nulls":3},"Trošak 3"]
[{"$nulls":3},"Trošak 4"]
[{"$nulls":3},"Trošak 5"]
["Zbir",null,{"$f":"SUBTOTAL(109,ExpNov[Iznos])","v":{"v":0,"d":"0.00"}}]

{"sheet":"dec.","index":13,"n_rows":9,"n_cols":5,"rows_kept":9,"merged":[[0,0,0,2]]}
["TROŠKOVI U DECEMBRU",null,null,"Rezime","Saveti"]
["Datum","Broj porudžbenice","Iznos","Kategorija","Opis"]
[{"$f":"DATE(YEAR(TODAY()),12,2)","v":"2016-12-02"},"A-12345",{"v":201,"d":"201.00"},"Trošak 1","Pribor"]
[{"$f":"DATE(YEAR(TODAY()),12,24)","v":"2016-12-24"},"A-12346",{"v":98,"d":"98.00"},"Trošak 2"]
[null,null,{"v":342,"d":"342.00"},"Trošak 2"]
[null,null,{"v":122,"d":"122.00"},"Trošak 3"]
[null,null,{"v":187,"d":"187.00"},"Trošak 4"]
[null,null,{"v":99,"d":"99.00"},"Trošak 5"]
["Zbir",null,{"$f":"SUBTOTAL(109,ExpDec[Iznos])","v":{"v":1049,"d":"1,049.00"}}]